{"text_format":"1","workbook":"xlsx","n_sheets":3,"sheets":["Instrucțiuni","Aplicatie","Istoric"],"not_rendered":{"charts":0,"images":0,"macros":1,"external_links":0,"defined_names":6,"comments":0,"pivot_tables":0},"unopened":[],"bounds":{"document_bytes":16777216,"sheet_cells":100000,"rows_first":2000,"rows_last":500,"rows_between":2000,"halvings":0,"cell_chars":16384,"cell_head_chars":4096},"cells_cut":0,"cells_raw":0,"read":"whole","date_system":"1900"}

{"sheet":"Instrucțiuni","index":0,"n_rows":49,"n_cols":9,"rows_kept":49,"cut":false,"hidden":false,"merged":[[2,1,47,17],[48,8,49,17]]}
[]
[]
[null,"Specialiștii în psihologie susțin că, pentru a evita apariția unor dezechilibre emoționale, este bine să ne organizăm un program zilnic, pe parcursul căruia să ne atingem obiectivele propuse.\n\nÎn acest sens, se recomandă stabilirea unor obiective ușor de realizat pentru a contribui în mod favorabil la dezvoltarea încrederii în propriile resurse. Exemple de astfel de obiective:\n \n                             - Activități intelectuale (scris, citit, învățat lucruri noi, etc.);\n                             - Activități fizice (plimbări, exerciții, etc.);\n                             - Activități recreative (vizionarea unui film, ascultat muzică, diverse jocuri, etc.);\n                             - Activități gospodărești (curățenie, gătit, etc.);\n                             - Activități sociale (prieteni, familie, etc.).\n\nÎn cazul în care observați că graficul afișat tinde spre rezultate minime sau negative, nu vă descurajați, ci începeți să vă mișcați în direcția opusă, mobilizându-vă resursele pe partea utilă a vieții.\n\nAplicația din fereastra alăturată este concepută în așa fel încât dumneavoastră, utilizatorul, nu trebuie decât să stabiliți data de la care doriți să începeți (urmăriți săgeata verde) și să răspundeți la cele 4 întrebări afișate și să apăsați pe butonul de sub ele (zilnic sau cât mai des pentru a fi graficele cât mai concludente).\n\nDacă nu reușiți să răspundeți zilnic, nu este nicio problemă. Rezultatele grafice iau în calcul doar zilele în care ați răspuns.\nPuteți răspunde de mai multe ori pe zi, dar datele care vor rămâne vor fi cele introduse ultima dată. Când deschideți aplicația într-o nouă zi, datele introduse vor fi pentru ziua respectivă.\nÎn josul aplicației aveți posibilitatea de a revedea ce răspunsuri ați dat în trecut (urmăriți instrucțiunile).\n\nNu uitați să îi dați voie aplicației să ruleze funcții Macro atunci când o deschideți pentru prima dată (bara galbenă de sus)."]
[]
[]
[]
[]
[]
[]
[]
[]
[]
[]
[]
[]
[]
[]
[]
[]
[]
[]
[]
[]
[]
[]
[]
[]
[]
[]
[]
[]
[]
[]
[]
[]
[]
[]
[]
[]
[]
[]
[]
[]
[]
[]
[]
[]
[]
[null,null,null,null,null,null,null,null,"MATERIAL REALIZAT DE PROF. PSIH. GHIDARCEA FLORENTINA"]

{"sheet":"Aplicatie","index":1,"n_rows":71,"n_cols":53,"rows_kept":71,"cut":false,"hidden":false,"merged":[[29,26,29,38],[31,26,31,31],[31,34,31,38],[5,32,6,38],[0,39,6,40],[12,26,12,32],[15,26,15,32],[25,26,25,38],[24,26,24,38],[14,26,14,32],[11,26,11,32],[8,26,8,32],[9,26,9,38],[28,26,28,38],[50,11,50,17],[52,11,52,16],[53,11,53,16],[54,11,54,17],[51,11,51,17],[56,1,56,9],[45,3,45,5],[55,2,55,7],[53,2,53,7],[46,2,47,3],[46,4,47,5],[46,6,47,7],[48,2,49,3],[48,4,49,5],[48,6,49,7],[50,2,51,3],[50,4,51,5],[50,6,51,7],[47,10,47,17],[46,10,46,17],[45,10,45,17],[48,12,48,15],[39,26,42,38],[44,10,44,17],[38,26,38,31],[38,32,38,38],[35,26,37,38],[0,26,0,27],[0,29,0,30],[0,28,2,28],[0,31,2,31],[1,29,2,30],[1,26,2,27],[18,26,18,38],[20,26,20,38],[21,26,21,38],[4,26,4,28],[7,26,7,28],[5,27,6,30],[17,26,17,32],[0,0,0,24],[2,3,2,5],[2,9,2,10],[2,14,2,15],[35,9,35,15],[35,17,35,23],[5,0,7,24],[26,1,26,7],[26,9,26,15],[26,17,26,23],[8,1,8,7],[8,9,8,15],[8,17,8,23],[17,1,17,7],[17,9,17,15],[4,9,4,15],[4,0,4,7],[4,17,4,24],[17,17,17,23],[35,1,35,7],[1,0,1,10],[1,14,1,24]]}
["Calendar",null,null,null,null,null,null,null,null,null,null,null,null,null,null,null,null,null,null,null,null,null,null,null,null,null,"Ziua începerii\n(ZZ-LL-AAAA)",null,null,"Zile de la data începerii",null,null,{"$f":"\"1) \"&AA10&CHAR(10)&\"2) \"&AA13&CHAR(10)&\"3) \"&AA16&CHAR(10)&\"4) \"&AA19","v":"1) \n2) Da\n3) Foarte mulțumit\n4) "},{"$f":"IF(AA13=\"Da\",1,0)","v":1},0,{"$f":"AH1+AI1","v":1},"1/0/1900",0,0]
["Ziua începerii",null,null,null,null,null,null,null,null,null,null,null,null,null,"Astăzi",null,null,null,null,null,null,null,null,null,null,null,"2020-04-02",null,null,{"$f":"365*YEARFRAC(AA2,TODAY(),3)","v":1},null,null,{"$f":"TODAY()","v":"2020-04-03"},{"$f":"IF(AA16=\"Foarte mulțumit\",2,IF(AA16=\"Destul de mulțumit\",1,IF(AA16=\"destul de nemulțumit\",-1,IF(AA16=\"Foarte nemulțumit\",-2,0))))","v":2},0,{"$f":"AH2+AI2","v":2},1,0,0]
[null,null,"Year ",{"$f":"YEAR(AA2)","v":2020},null,null,null,null,"Month ",{"$f":"MONTH(AA2)","v":4},null,null,null,"Start Day ",2,null,"1:Sun, 2:Mon …"]
[]
[null,null,null,null,null,null,null,null,null,null,null,null,null,null,null,null,null,null,null,null,null,null,null,null,null,null,null,null,null,6,9]
[{"$f":"IF($J$3=1,D3,D3&\"  -  \"&D3+1)","v":"2020  -  2021"},null,null,null,null,null,null,null,null,null,null,null,null,null,null,null,null,null,null,null,null,null,null,null,null,null,null,"Modificați data de la care doriți să începeți ",null,null,null,null,"Sau apăsați AICI pentru a șterge toate răspunsurile anterioare și a o lua de la început"]
[]
[]
[null,{"$f":"DATE(D3,J3,1)","v":"2020-04-01"},null,null,null,null,null,null,null,{"$f":"DATE(YEAR(B9+42),MONTH(B9+42),1)","v":"2020-05-01"},null,null,null,null,null,null,null,{"$f":"DATE(YEAR(J9+42),MONTH(J9+42),1)","v":"2020-06-01"},null,null,null,null,null,null,null,null,"1) Ce am făcut azi?"]
[null,{"$f":"CHOOSE(1+MOD($O$3+1-2,7),\"D\",\"L\",\"M\",\"M\",\"J\",\"V\",\"S\")","v":"L"},{"$f":"CHOOSE(1+MOD($O$3+2-2,7),\"D\",\"L\",\"M\",\"M\",\"J\",\"V\",\"S\")","v":"M"},{"$f":"CHOOSE(1+MOD($O$3+3-2,7),\"D\",\"L\",\"M\",\"M\",\"J\",\"V\",\"S\")","v":"M"},{"$f":"CHOOSE(1+MOD($O$3+4-2,7),\"D\",\"L\",\"M\",\"M\",\"J\",\"V\",\"S\")","v":"J"},{"$f":"CHOOSE(1+MOD($O$3+5-2,7),\"D\",\"L\",\"M\",\"M\",\"J\",\"V\",\"S\")","v":"V"},{"$f":"CHOOSE(1+MOD($O$3+6-2,7),\"D\",\"L\",\"M\",\"M\",\"J\",\"V\",\"S\")","v":"S"},{"$f":"CHOOSE(1+MOD($O$3+7-2,7),\"D\",\"L\",\"M\",\"M\",\"J\",\"V\",\"S\")","v":"D"},null,{"$f":"CHOOSE(1+MOD($O$3+1-2,7),\"D\",\"L\",\"M\",\"M\",\"J\",\"V\",\"S\")","v":"L"},{"$f":"CHOOSE(1+MOD($O$3+2-2,7),\"D\",\"L\",\"M\",\"M\",\"J\",\"V\",\"S\")","v":"M"},{"$f":"CHOOSE(1+MOD($O$3+3-2,7),\"D\",\"L\",\"M\",\"M\",\"J\",\"V\",\"S\")","v":"M"},{"$f":"CHOOSE(1+MOD($O$3+4-2,7),\"D\",\"L\",\"M\",\"M\",\"J\",\"V\",\"S\")","v":"J"},{"$f":"CHOOSE(1+MOD($O$3+5-2,7),\"D\",\"L\",\"M\",\"M\",\"J\",\"V\",\"S\")","v":"V"},{"$f":"CHOOSE(1+MOD($O$3+6-2,7),\"D\",\"L\",\"M\",\"M\",\"J\",\"V\",\"S\")","v":"S"},{"$f":"CHOOSE(1+MOD($O$3+7-2,7),\"D\",\"L\",\"M\",\"M\",\"J\",\"V\",\"S\")","v":"D"},null,{"$f":"CHOOSE(1+MOD($O$3+1-2,7),\"D\",\"L\",\"M\",\"M\",\"J\",\"V\",\"S\")","v":"L"},{"$f":"CHOOSE(1+MOD($O$3+2-2,7),\"D\",\"L\",\"M\",\"M\",\"J\",\"V\",\"S\")","v":"M"},{"$f":"CHOOSE(1+MOD($O$3+3-2,7),\"D\",\"L\",\"M\",\"M\",\"J\",\"V\",\"S\")","v":"M"},{"$f":"CHOOSE(1+MOD($O$3+4-2,7),\"D\",\"L\",\"M\",\"M\",\"J\",\"V\",\"S\")","v":"J"},{"$f":"CHOOSE(1+MOD($O$3+5-2,7),\"D\",\"L\",\"M\",\"M\",\"J\",\"V\",\"S\")","v":"V"},{"$f":"CHOOSE(1+MOD($O$3+6-2,7),\"D\",\"L\",\"M\",\"M\",\"J\",\"V\",\"S\")","v":"S"},{"$f":"CHOOSE(1+MOD($O$3+7-2,7),\"D\",\"L\",\"M\",\"M\",\"J\",\"V\",\"S\")","v":"D"}]
[null,{"$f":"IF(WEEKDAY(B9,1)=MOD($O$3,7),B9,\"\")","v":""},{"$f":"IF(B11=\"\",IF(WEEKDAY(B9,1)=MOD($O$3,7)+1,B9,\"\"),B11+1)","v":""},{"$f":"IF(C11=\"\",IF(WEEKDAY(B9,1)=MOD($O$3+1,7)+1,B9,\"\"),C11+1)","v":"2020-04-01"},{"$f":"IF(D11=\"\",IF(WEEKDAY(B9,1)=MOD($O$3+2,7)+1,B9,\"\"),D11+1)","v":"2020-04-02"},{"$f":"IF(E11=\"\",IF(WEEKDAY(B9,1)=MOD($O$3+3,7)+1,B9,\"\"),E11+1)","v":"2020-04-03"},{"$f":"IF(F11=\"\",IF(WEEKDAY(B9,1)=MOD($O$3+4,7)+1,B9,\"\"),F11+1)","v":"2020-04-04"},{"$f":"IF(G11=\"\",IF(WEEKDAY(B9,1)=MOD($O$3+5,7)+1,B9,\"\"),G11+1)","v":"2020-04-05"},null,{"$f":"IF(WEEKDAY(J9,1)=MOD($O$3,7),J9,\"\")","v":""},{"$f":"IF(J11=\"\",IF(WEEKDAY(J9,1)=MOD($O$3,7)+1,J9,\"\"),J11+1)","v":""},{"$f":"IF(K11=\"\",IF(WEEKDAY(J9,1)=MOD($O$3+1,7)+1,J9,\"\"),K11+1)","v":""},{"$f":"IF(L11=\"\",IF(WEEKDAY(J9,1)=MOD($O$3+2,7)+1,J9,\"\"),L11+1)","v":""},{"$f":"IF(M11=\"\",IF(WEEKDAY(J9,1)=MOD($O$3+3,7)+1,J9,\"\"),M11+1)","v":"2020-05-01"},{"$f":"IF(N11=\"\",IF(WEEKDAY(J9,1)=MOD($O$3+4,7)+1,J9,\"\"),N11+1)","v":"2020-05-02"},{"$f":"IF(O11=\"\",IF(WEEKDAY(J9,1)=MOD($O$3+5,7)+1,J9,\"\"),O11+1)","v":"2020-05-03"},null,{"$f":"IF(WEEKDAY(R9,1)=MOD($O$3,7),R9,\"\")","v":"2020-06-01"},{"$f":"IF(R11=\"\",IF(WEEKDAY(R9,1)=MOD($O$3,7)+1,R9,\"\"),R11+1)","v":"2020-06-02"},{"$f":"IF(S11=\"\",IF(WEEKDAY(R9,1)=MOD($O$3+1,7)+1,R9,\"\"),S11+1)","v":"2020-06-03"},{"$f":"IF(T11=\"\",IF(WEEKDAY(R9,1)=MOD($O$3+2,7)+1,R9,\"\"),T11+1)","v":"2020-06-04"},{"$f":"IF(U11=\"\",IF(WEEKDAY(R9,1)=MOD($O$3+3,7)+1,R9,\"\"),U11+1)","v":"2020-06-05"},{"$f":"IF(V11=\"\",IF(WEEKDAY(R9,1)=MOD($O$3+4,7)+1,R9,\"\"),V11+1)","v":"2020-06-06"},{"$f":"IF(W11=\"\",IF(WEEKDAY(R9,1)=MOD($O$3+5,7)+1,R9,\"\"),W11+1)","v":"2020-06-07"}]
[null,{"$f":"IF(H11=\"\",\"\",IF(MONTH(H11+1)<>MONTH(H11),\"\",H11+1))","v":"2020-04-06"},{"$f":"IF(B12=\"\",\"\",IF(MONTH(B12+1)<>MONTH(B12),\"\",B12+1))","v":"2020-04-07"},{"$f":"IF(C12=\"\",\"\",IF(MONTH(C12+1)<>MONTH(C12),\"\",C12+1))","v":"2020-04-08"},"2020-04-09","2020-04-10","2020-04-11","2020-04-12",null,{"$f":"IF(P11=\"\",\"\",IF(MONTH(P11+1)<>MONTH(P11),\"\",P11+1))","v":"2020-05-04"},{"$f":"IF(J12=\"\",\"\",IF(MONTH(J12+1)<>MONTH(J12),\"\",J12+1))","v":"2020-05-05"},"2020-05-06","2020-05-07","2020-05-08","2020-05-09","2020-05-10",null,{"$f":"IF(X11=\"\",\"\",IF(MONTH(X11+1)<>MONTH(X11),\"\",X11+1))","v":"2020-06-08"},{"$f":"IF(R12=\"\",\"\",IF(MONTH(R12+1)<>MONTH(R12),\"\",R12+1))","v":"2020-06-09"},"2020-06-10","2020-06-11","2020-06-12","2020-06-13","2020-06-14",null,null,"2) Am făcut azi ce mi-am propus ieri?",null,null,null,null,null,null,null,"Da","Nu"]
[null,{"$f":"IF(H12=\"\",\"\",IF(MONTH(H12+1)<>MONTH(H12),\"\",H12+1))","v":"2020-04-13"},{"$f":"IF(B13=\"\",\"\",IF(MONTH(B13+1)<>MONTH(B13),\"\",B13+1))","v":"2020-04-14"},"2020-04-15","2020-04-16","2020-04-17","2020-04-18","2020-04-19",null,{"$f":"IF(P12=\"\",\"\",IF(MONTH(P12+1)<>MONTH(P12),\"\",P12+1))","v":"2020-05-11"},"2020-05-12","2020-05-13","2020-05-14","2020-05-15","2020-05-16","2020-05-17",null,{"$f":"IF(X12=\"\",\"\",IF(MONTH(X12+1)<>MONTH(X12),\"\",X12+1))","v":"2020-06-15"},"2020-06-16","2020-06-17","2020-06-18","2020-06-19","2020-06-20","2020-06-21",null,null,"Da"]
[null,{"$f":"IF(H13=\"\",\"\",IF(MONTH(H13+1)<>MONTH(H13),\"\",H13+1))","v":"2020-04-20"},{"$f":"IF(B14=\"\",\"\",IF(MONTH(B14+1)<>MONTH(B14),\"\",B14+1))","v":"2020-04-21"},"2020-04-22","2020-04-23","2020-04-24","2020-04-25","2020-04-26",null,{"$f":"IF(P13=\"\",\"\",IF(MONTH(P13+1)<>MONTH(P13),\"\",P13+1))","v":"2020-05-18"},"2020-05-19","2020-05-20","2020-05-21","2020-05-22","2020-05-23","2020-05-24",null,{"$f":"IF(X13=\"\",\"\",IF(MONTH(X13+1)<>MONTH(X13),\"\",X13+1))","v":"2020-06-22"},"2020-06-23","2020-06-24","2020-06-25","2020-06-26","2020-06-27","2020-06-28"]
[null,{"$f":"IF(H14=\"\",\"\",IF(MONTH(H14+1)<>MONTH(H14),\"\",H14+1))","v":"2020-04-27"},{"$f":"IF(B15=\"\",\"\",IF(MONTH(B15+1)<>MONTH(B15),\"\",B15+1))","v":"2020-04-28"},"2020-04-29","2020-04-30","","","",null,{"$f":"IF(P14=\"\",\"\",IF(MONTH(P14+1)<>MONTH(P14),\"\",P14+1))","v":"2020-05-25"},"2020-05-26","2020-05-27","2020-05-28","2020-05-29","2020-05-30","2020-05-31",null,{"$f":"IF(X14=\"\",\"\",IF(MONTH(X14+1)<>MONTH(X14),\"\",X14+1))","v":"2020-06-29"},"2020-06-30","","","","","",null,null,"3) Cât de mulțumit sunt de ziua de azi?",null,null,null,null,null,null,null,"Foarte mulțumit","Destul de mulțumit","Destul de nemulțumit","Foarte nemulțumit"]
[null,{"$f":"IF(H15=\"\",\"\",IF(MONTH(H15+1)<>MONTH(H15),\"\",H15+1))","v":""},{"$f":"IF(B16=\"\",\"\",IF(MONTH(B16+1)<>MONTH(B16),\"\",B16+1))","v":""},"","","","","",null,{"$f":"IF(P15=\"\",\"\",IF(MONTH(P15+1)<>MONTH(P15),\"\",P15+1))","v":""},"","","","","","",null,{"$f":"IF(X15=\"\",\"\",IF(MONTH(X15+1)<>MONTH(X15),\"\",X15+1))","v":""},"","","","","","",null,null,"Foarte mulțumit"]
[]
[null,{"$f":"DATE(YEAR(R9+42),MONTH(R9+42),1)","v":"2020-07-01"},null,null,null,null,null,null,null,{"$f":"DATE(YEAR(B18+42),MONTH(B18+42),1)","v":"2020-08-01"},null,null,null,null,null,null,null,{"$f":"DATE(YEAR(J18+42),MONTH(J18+42),1)","v":"2020-09-01"},null,null,null,null,null,null,null,null,"4) Ce îmi propun să fac mâine?"]
[null,{"$f":"CHOOSE(1+MOD($O$3+1-2,7),\"D\",\"L\",\"M\",\"M\",\"J\",\"V\",\"S\")","v":"L"},{"$f":"CHOOSE(1+MOD($O$3+2-2,7),\"D\",\"L\",\"M\",\"M\",\"J\",\"V\",\"S\")","v":"M"},{"$f":"CHOOSE(1+MOD($O$3+3-2,7),\"D\",\"L\",\"M\",\"M\",\"J\",\"V\",\"S\")","v":"M"},{"$f":"CHOOSE(1+MOD($O$3+4-2,7),\"D\",\"L\",\"M\",\"M\",\"J\",\"V\",\"S\")","v":"J"},{"$f":"CHOOSE(1+MOD($O$3+5-2,7),\"D\",\"L\",\"M\",\"M\",\"J\",\"V\",\"S\")","v":"V"},{"$f":"CHOOSE(1+MOD($O$3+6-2,7),\"D\",\"L\",\"M\",\"M\",\"J\",\"V\",\"S\")","v":"S"},{"$f":"CHOOSE(1+MOD($O$3+7-2,7),\"D\",\"L\",\"M\",\"M\",\"J\",\"V\",\"S\")","v":"D"},null,{"$f":"CHOOSE(1+MOD($O$3+1-2,7),\"D\",\"L\",\"M\",\"M\",\"J\",\"V\",\"S\")","v":"L"},{"$f":"CHOOSE(1+MOD($O$3+2-2,7),\"D\",\"L\",\"M\",\"M\",\"J\",\"V\",\"S\")","v":"M"},{"$f":"CHOOSE(1+MOD($O$3+3-2,7),\"D\",\"L\",\"M\",\"M\",\"J\",\"V\",\"S\")","v":"M"},{"$f":"CHOOSE(1+MOD($O$3+4-2,7),\"D\",\"L\",\"M\",\"M\",\"J\",\"V\",\"S\")","v":"J"},{"$f":"CHOOSE(1+MOD($O$3+5-2,7),\"D\",\"L\",\"M\",\"M\",\"J\",\"V\",\"S\")","v":"V"},{"$f":"CHOOSE(1+MOD($O$3+6-2,7),\"D\",\"L\",\"M\",\"M\",\"J\",\"V\",\"S\")","v":"S"},{"$f":"CHOOSE(1+MOD($O$3+7-2,7),\"D\",\"L\",\"M\",\"M\",\"J\",\"V\",\"S\")","v":"D"},null,{"$f":"CHOOSE(1+MOD($O$3+1-2,7),\"D\",\"L\",\"M\",\"M\",\"J\",\"V\",\"S\")","v":"L"},{"$f":"CHOOSE(1+MOD($O$3+2-2,7),\"D\",\"L\",\"M\",\"M\",\"J\",\"V\",\"S\")","v":"M"},{"$f":"CHOOSE(1+MOD($O$3+3-2,7),\"D\",\"L\",\"M\",\"M\",\"J\",\"V\",\"S\")","v":"M"},{"$f":"CHOOSE(1+MOD($O$3+4-2,7),\"D\",\"L\",\"M\",\"M\",\"J\",\"V\",\"S\")","v":"J"},{"$f":"CHOOSE(1+MOD($O$3+5-2,7),\"D\",\"L\",\"M\",\"M\",\"J\",\"V\",\"S\")","v":"V"},{"$f":"CHOOSE(1+MOD($O$3+6-2,7),\"D\",\"L\",\"M\",\"M\",\"J\",\"V\",\"S\")","v":"S"},{"$f":"CHOOSE(1+MOD($O$3+7-2,7),\"D\",\"L\",\"M\",\"M\",\"J\",\"V\",\"S\")","v":"D"}]
[null,{"$f":"IF(WEEKDAY(B18,1)=MOD($O$3,7),B18,\"\")","v":""},{"$f":"IF(B20=\"\",IF(WEEKDAY(B18,1)=MOD($O$3,7)+1,B18,\"\"),B20+1)","v":""},{"$f":"IF(C20=\"\",IF(WEEKDAY(B18,1)=MOD($O$3+1,7)+1,B18,\"\"),C20+1)","v":"2020-07-01"},{"$f":"IF(D20=\"\",IF(WEEKDAY(B18,1)=MOD($O$3+2,7)+1,B18,\"\"),D20+1)","v":"2020-07-02"},{"$f":"IF(E20=\"\",IF(WEEKDAY(B18,1)=MOD($O$3+3,7)+1,B18,\"\"),E20+1)","v":"2020-07-03"},{"$f":"IF(F20=\"\",IF(WEEKDAY(B18,1)=MOD($O$3+4,7)+1,B18,\"\"),F20+1)","v":"2020-07-04"},{"$f":"IF(G20=\"\",IF(WEEKDAY(B18,1)=MOD($O$3+5,7)+1,B18,\"\"),G20+1)","v":"2020-07-05"},null,{"$f":"IF(WEEKDAY(J18,1)=MOD($O$3,7),J18,\"\")","v":""},{"$f":"IF(J20=\"\",IF(WEEKDAY(J18,1)=MOD($O$3,7)+1,J18,\"\"),J20+1)","v":""},{"$f":"IF(K20=\"\",IF(WEEKDAY(J18,1)=MOD($O$3+1,7)+1,J18,\"\"),K20+1)","v":""},{"$f":"IF(L20=\"\",IF(WEEKDAY(J18,1)=MOD($O$3+2,7)+1,J18,\"\"),L20+1)","v":""},{"$f":"IF(M20=\"\",IF(WEEKDAY(J18,1)=MOD($O$3+3,7)+1,J18,\"\"),M20+1)","v":""},{"$f":"IF(N20=\"\",IF(WEEKDAY(J18,1)=MOD($O$3+4,7)+1,J18,\"\"),N20+1)","v":"2020-08-01"},{"$f":"IF(O20=\"\",IF(WEEKDAY(J18,1)=MOD($O$3+5,7)+1,J18,\"\"),O20+1)","v":"2020-08-02"},null,{"$f":"IF(WEEKDAY(R18,1)=MOD($O$3,7),R18,\"\")","v":""},{"$f":"IF(R20=\"\",IF(WEEKDAY(R18,1)=MOD($O$3,7)+1,R18,\"\"),R20+1)","v":"2020-09-01"},{"$f":"IF(S20=\"\",IF(WEEKDAY(R18,1)=MOD($O$3+1,7)+1,R18,\"\"),S20+1)","v":"2020-09-02"},{"$f":"IF(T20=\"\",IF(WEEKDAY(R18,1)=MOD($O$3+2,7)+1,R18,\"\"),T20+1)","v":"2020-09-03"},{"$f":"IF(U20=\"\",IF(WEEKDAY(R18,1)=MOD($O$3+3,7)+1,R18,\"\"),U20+1)","v":"2020-09-04"},{"$f":"IF(V20=\"\",IF(WEEKDAY(R18,1)=MOD($O$3+4,7)+1,R18,\"\"),V20+1)","v":"2020-09-05"},{"$f":"IF(W20=\"\",IF(WEEKDAY(R18,1)=MOD($O$3+5,7)+1,R18,\"\"),W20+1)","v":"2020-09-06"}]
[null,{"$f":"IF(H20=\"\",\"\",IF(MONTH(H20+1)<>MONTH(H20),\"\",H20+1))","v":"2020-07-06"},{"$f":"IF(B21=\"\",\"\",IF(MONTH(B21+1)<>MONTH(B21),\"\",B21+1))","v":"2020-07-07"},"2020-07-08","2020-07-09","2020-07-10","2020-07-11","2020-07-12",null,{"$f":"IF(P20=\"\",\"\",IF(MONTH(P20+1)<>MONTH(P20),\"\",P20+1))","v":"2020-08-03"},{"$f":"IF(J21=\"\",\"\",IF(MONTH(J21+1)<>MONTH(J21),\"\",J21+1))","v":"2020-08-04"},"2020-08-05","2020-08-06","2020-08-07","2020-08-08","2020-08-09",null,{"$f":"IF(X20=\"\",\"\",IF(MONTH(X20+1)<>MONTH(X20),\"\",X20+1))","v":"2020-09-07"},{"$f":"IF(R21=\"\",\"\",IF(MONTH(R21+1)<>MONTH(R21),\"\",R21+1))","v":"2020-09-08"},"2020-09-09","2020-09-10","2020-09-11","2020-09-12","2020-09-13",null,null,"Dacă ați răspuns la întrebări, apăsați pe butonul de mai jos"]
[null,{"$f":"IF(H21=\"\",\"\",IF(MONTH(H21+1)<>MONTH(H21),\"\",H21+1))","v":"2020-07-13"},"2020-07-14","2020-07-15","2020-07-16","2020-07-17","2020-07-18","2020-07-19",null,{"$f":"IF(P21=\"\",\"\",IF(MONTH(P21+1)<>MONTH(P21),\"\",P21+1))","v":"2020-08-10"},"2020-08-11","2020-08-12","2020-08-13","2020-08-14","2020-08-15","2020-08-16",null,{"$f":"IF(X21=\"\",\"\",IF(MONTH(X21+1)<>MONTH(X21),\"\",X21+1))","v":"2020-09-14"},"2020-09-15","2020-09-16","2020-09-17","2020-09-18","2020-09-19","2020-09-20",null,null,"ACCEPT"]
[null,{"$f":"IF(H22=\"\",\"\",IF(MONTH(H22+1)<>MONTH(H22),\"\",H22+1))","v":"2020-07-20"},"2020-07-21","2020-07-22","2020-07-23","2020-07-24","2020-07-25","2020-07-26",null,{"$f":"IF(P22=\"\",\"\",IF(MONTH(P22+1)<>MONTH(P22),\"\",P22+1))","v":"2020-08-17"},"2020-08-18","2020-08-19","2020-08-20","2020-08-21","2020-08-22","2020-08-23",null,{"$f":"IF(X22=\"\",\"\",IF(MONTH(X22+1)<>MONTH(X22),\"\",X22+1))","v":"2020-09-21"},"2020-09-22","2020-09-23","2020-09-24","2020-09-25","2020-09-26","2020-09-27"]
[null,{"$f":"IF(H23=\"\",\"\",IF(MONTH(H23+1)<>MONTH(H23),\"\",H23+1))","v":"2020-07-27"},"2020-07-28","2020-07-29","2020-07-30","2020-07-31","","",null,{"$f":"IF(P23=\"\",\"\",IF(MONTH(P23+1)<>MONTH(P23),\"\",P23+1))","v":"2020-08-24"},"2020-08-25","2020-08-26","2020-08-27","2020-08-28","2020-08-29","2020-08-30",null,{"$f":"IF(X23=\"\",\"\",IF(MONTH(X23+1)<>MONTH(X23),\"\",X23+1))","v":"2020-09-28"},"2020-09-29","2020-09-30","","","",""]
[null,{"$f":"IF(H24=\"\",\"\",IF(MONTH(H24+1)<>MONTH(H24),\"\",H24+1))","v":""},"","","","","","",null,{"$f":"IF(P24=\"\",\"\",IF(MONTH(P24+1)<>MONTH(P24),\"\",P24+1))","v":"2020-08-31"},"","","","","","",null,{"$f":"IF(X24=\"\",\"\",IF(MONTH(X24+1)<>MONTH(X24),\"\",X24+1))","v":""},"","","","","","",null,null,"Procentual, de câte ori ați făcut ceea ce v-ați propus cu o zi înainte (%):"]
[null,null,null,null,null,null,null,null,null,null,null,null,null,null,null,null,null,null,null,null,null,null,null,null,null,null,{"$f":"IF(AK2-1<>0,AL1*100/(AK2-1),\"Mai întâi trebuie să răspundeți la întrebările de mai sus!\")","v":"Mai întâi trebuie să răspundeți la întrebările de mai sus!"}]
[null,{"$f":"DATE(YEAR(R18+42),MONTH(R18+42),1)","v":"2020-10-01"},null,null,null,null,null,null,null,{"$f":"DATE(YEAR(B27+42),MONTH(B27+42),1)","v":"2020-11-01"},null,null,null,null,null,null,null,{"$f":"DATE(YEAR(J27+42),MONTH(J27+42),1)","v":"2020-12-01"}]
[null,{"$f":"CHOOSE(1+MOD($O$3+1-2,7),\"D\",\"L\",\"M\",\"M\",\"J\",\"V\",\"S\")","v":"L"},{"$f":"CHOOSE(1+MOD($O$3+2-2,7),\"D\",\"L\",\"M\",\"M\",\"J\",\"V\",\"S\")","v":"M"},{"$f":"CHOOSE(1+MOD($O$3+3-2,7),\"D\",\"L\",\"M\",\"M\",\"J\",\"V\",\"S\")","v":"M"},{"$f":"CHOOSE(1+MOD($O$3+4-2,7),\"D\",\"L\",\"M\",\"M\",\"J\",\"V\",\"S\")","v":"J"},{"$f":"CHOOSE(1+MOD($O$3+5-2,7),\"D\",\"L\",\"M\",\"M\",\"J\",\"V\",\"S\")","v":"V"},{"$f":"CHOOSE(1+MOD($O$3+6-2,7),\"D\",\"L\",\"M\",\"M\",\"J\",\"V\",\"S\")","v":"S"},{"$f":"CHOOSE(1+MOD($O$3+7-2,7),\"D\",\"L\",\"M\",\"M\",\"J\",\"V\",\"S\")","v":"D"},null,{"$f":"CHOOSE(1+MOD($O$3+1-2,7),\"D\",\"L\",\"M\",\"M\",\"J\",\"V\",\"S\")","v":"L"},{"$f":"CHOOSE(1+MOD($O$3+2-2,7),\"D\",\"L\",\"M\",\"M\",\"J\",\"V\",\"S\")","v":"M"},{"$f":"CHOOSE(1+MOD($O$3+3-2,7),\"D\",\"L\",\"M\",\"M\",\"J\",\"V\",\"S\")","v":"M"},{"$f":"CHOOSE(1+MOD($O$3+4-2,7),\"D\",\"L\",\"M\",\"M\",\"J\",\"V\",\"S\")","v":"J"},{"$f":"CHOOSE(1+MOD($O$3+5-2,7),\"D\",\"L\",\"M\",\"M\",\"J\",\"V\",\"S\")","v":"V"},{"$f":"CHOOSE(1+MOD($O$3+6-2,7),\"D\",\"L\",\"M\",\"M\",\"J\",\"V\",\"S\")","v":"S"},{"$f":"CHOOSE(1+MOD($O$3+7-2,7),\"D\",\"L\",\"M\",\"M\",\"J\",\"V\",\"S\")","v":"D"},null,{"$f":"CHOOSE(1+MOD($O$3+1-2,7),\"D\",\"L\",\"M\",\"M\",\"J\",\"V\",\"S\")","v":"L"},{"$f":"CHOOSE(1+MOD($O$3+2-2,7),\"D\",\"L\",\"M\",\"M\",\"J\",\"V\",\"S\")","v":"M"},{"$f":"CHOOSE(1+MOD($O$3+3-2,7),\"D\",\"L\",\"M\",\"M\",\"J\",\"V\",\"S\")","v":"M"},{"$f":"CHOOSE(1+MOD($O$3+4-2,7),\"D\",\"L\",\"M\",\"M\",\"J\",\"V\",\"S\")","v":"J"},{"$f":"CHOOSE(1+MOD($O$3+5-2,7),\"D\",\"L\",\"M\",\"M\",\"J\",\"V\",\"S\")","v":"V"},{"$f":"CHOOSE(1+MOD($O$3+6-2,7),\"D\",\"L\",\"M\",\"M\",\"J\",\"V\",\"S\")","v":"S"},{"$f":"CHOOSE(1+MOD($O$3+7-2,7),\"D\",\"L\",\"M\",\"M\",\"J\",\"V\",\"S\")","v":"D"}]
[null,{"$f":"IF(WEEKDAY(B27,1)=MOD($O$3,7),B27,\"\")","v":""},{"$f":"IF(B29=\"\",IF(WEEKDAY(B27,1)=MOD($O$3,7)+1,B27,\"\"),B29+1)","v":""},{"$f":"IF(C29=\"\",IF(WEEKDAY(B27,1)=MOD($O$3+1,7)+1,B27,\"\"),C29+1)","v":""},{"$f":"IF(D29=\"\",IF(WEEKDAY(B27,1)=MOD($O$3+2,7)+1,B27,\"\"),D29+1)","v":"2020-10-01"},{"$f":"IF(E29=\"\",IF(WEEKDAY(B27,1)=MOD($O$3+3,7)+1,B27,\"\"),E29+1)","v":"2020-10-02"},{"$f":"IF(F29=\"\",IF(WEEKDAY(B27,1)=MOD($O$3+4,7)+1,B27,\"\"),F29+1)","v":"2020-10-03"},{"$f":"IF(G29=\"\",IF(WEEKDAY(B27,1)=MOD($O$3+5,7)+1,B27,\"\"),G29+1)","v":"2020-10-04"},null,{"$f":"IF(WEEKDAY(J27,1)=MOD($O$3,7),J27,\"\")","v":""},{"$f":"IF(J29=\"\",IF(WEEKDAY(J27,1)=MOD($O$3,7)+1,J27,\"\"),J29+1)","v":""},{"$f":"IF(K29=\"\",IF(WEEKDAY(J27,1)=MOD($O$3+1,7)+1,J27,\"\"),K29+1)","v":""},{"$f":"IF(L29=\"\",IF(WEEKDAY(J27,1)=MOD($O$3+2,7)+1,J27,\"\"),L29+1)","v":""},{"$f":"IF(M29=\"\",IF(WEEKDAY(J27,1)=MOD($O$3+3,7)+1,J27,\"\"),M29+1)","v":""},{"$f":"IF(N29=\"\",IF(WEEKDAY(J27,1)=MOD($O$3+4,7)+1,J27,\"\"),N29+1)","v":""},{"$f":"IF(O29=\"\",IF(WEEKDAY(J27,1)=MOD($O$3+5,7)+1,J27,\"\"),O29+1)","v":"2020-11-01"},null,{"$f":"IF(WEEKDAY(R27,1)=MOD($O$3,7),R27,\"\")","v":""},{"$f":"IF(R29=\"\",IF(WEEKDAY(R27,1)=MOD($O$3,7)+1,R27,\"\"),R29+1)","v":"2020-12-01"},{"$f":"IF(S29=\"\",IF(WEEKDAY(R27,1)=MOD($O$3+1,7)+1,R27,\"\"),S29+1)","v":"2020-12-02"},{"$f":"IF(T29=\"\",IF(WEEKDAY(R27,1)=MOD($O$3+2,7)+1,R27,\"\"),T29+1)","v":"2020-12-03"},{"$f":"IF(U29=\"\",IF(WEEKDAY(R27,1)=MOD($O$3+3,7)+1,R27,\"\"),U29+1)","v":"2020-12-04"},{"$f":"IF(V29=\"\",IF(WEEKDAY(R27,1)=MOD($O$3+4,7)+1,R27,\"\"),V29+1)","v":"2020-12-05"},{"$f":"IF(W29=\"\",IF(WEEKDAY(R27,1)=MOD($O$3+5,7)+1,R27,\"\"),W29+1)","v":"2020-12-06"},null,null,"Procentual, cât de mulțumit ați fost în zilele monitorizate  (%):"]
[null,{"$f":"IF(H29=\"\",\"\",IF(MONTH(H29+1)<>MONTH(H29),\"\",H29+1))","v":"2020-10-05"},{"$f":"IF(B30=\"\",\"\",IF(MONTH(B30+1)<>MONTH(B30),\"\",B30+1))","v":"2020-10-06"},"2020-10-07","2020-10-08","2020-10-09","2020-10-10","2020-10-11",null,{"$f":"IF(P29=\"\",\"\",IF(MONTH(P29+1)<>MONTH(P29),\"\",P29+1))","v":"2020-11-02"},{"$f":"IF(J30=\"\",\"\",IF(MONTH(J30+1)<>MONTH(J30),\"\",J30+1))","v":"2020-11-03"},"2020-11-04","2020-11-05","2020-11-06","2020-11-07","2020-11-08",null,{"$f":"IF(X29=\"\",\"\",IF(MONTH(X29+1)<>MONTH(X29),\"\",X29+1))","v":"2020-12-07"},{"$f":"IF(R30=\"\",\"\",IF(MONTH(R30+1)<>MONTH(R30),\"\",R30+1))","v":"2020-12-08"},"2020-12-09","2020-12-10","2020-12-11","2020-12-12","2020-12-13",null,null,{"$f":"IF(AL2<>\"\",IF(AL2=0,\"Neutru.\",AL2*100/((AK2-1)*2)),\"Mai întâi trebuie să răspundeți la întrebările de mai sus!\")","v":"Neutru."}]
[null,{"$f":"IF(H30=\"\",\"\",IF(MONTH(H30+1)<>MONTH(H30),\"\",H30+1))","v":"2020-10-12"},"2020-10-13","2020-10-14","2020-10-15","2020-10-16","2020-10-17","2020-10-18",null,{"$f":"IF(P30=\"\",\"\",IF(MONTH(P30+1)<>MONTH(P30),\"\",P30+1))","v":"2020-11-09"},"2020-11-10","2020-11-11","2020-11-12","2020-11-13","2020-11-14","2020-11-15",null,{"$f":"IF(X30=\"\",\"\",IF(MONTH(X30+1)<>MONTH(X30),\"\",X30+1))","v":"2020-12-14"},"2020-12-15","2020-12-16","2020-12-17","2020-12-18","2020-12-19","2020-12-20"]
[null,{"$f":"IF(H31=\"\",\"\",IF(MONTH(H31+1)<>MONTH(H31),\"\",H31+1))","v":"2020-10-19"},"2020-10-20","2020-10-21","2020-10-22","2020-10-23","2020-10-24","2020-10-25",null,{"$f":"IF(P31=\"\",\"\",IF(MONTH(P31+1)<>MONTH(P31),\"\",P31+1))","v":"2020-11-16"},"2020-11-17","2020-11-18","2020-11-19","2020-11-20","2020-11-21","2020-11-22",null,{"$f":"IF(X31=\"\",\"\",IF(MONTH(X31+1)<>MONTH(X31),\"\",X31+1))","v":"2020-12-21"},"2020-12-22","2020-12-23","2020-12-24","2020-12-25","2020-12-26","2020-12-27",null,null,"Mai mult nemulțumit",null,null,null,null,null,null,null,"Mai mult mulțumit"]
[null,{"$f":"IF(H32=\"\",\"\",IF(MONTH(H32+1)<>MONTH(H32),\"\",H32+1))","v":"2020-10-26"},"2020-10-27","2020-10-28","2020-10-29","2020-10-30","2020-10-31","",null,{"$f":"IF(P32=\"\",\"\",IF(MONTH(P32+1)<>MONTH(P32),\"\",P32+1))","v":"2020-11-23"},"2020-11-24","2020-11-25","2020-11-26","2020-11-27","2020-11-28","2020-11-29",null,{"$f":"IF(X32=\"\",\"\",IF(MONTH(X32+1)<>MONTH(X32),\"\",X32+1))","v":"2020-12-28"},"2020-12-29","2020-12-30","2020-12-31","","",""]
[null,{"$f":"IF(H33=\"\",\"\",IF(MONTH(H33+1)<>MONTH(H33),\"\",H33+1))","v":""},"","","","","","",null,{"$f":"IF(P33=\"\",\"\",IF(MONTH(P33+1)<>MONTH(P33),\"\",P33+1))","v":"2020-11-30"},"","","","","","",null,{"$f":"IF(X33=\"\",\"\",IF(MONTH(X33+1)<>MONTH(X33),\"\",X33+1))","v":""},"","","","","",""]
[]
[null,{"$f":"DATE(YEAR(R27+42),MONTH(R27+42),1)","v":"2021-01-01"},null,null,null,null,null,null,null,{"$f":"DATE(YEAR(B36+42),MONTH(B36+42),1)","v":"2021-02-01"},null,null,null,null,null,null,null,{"$f":"DATE(YEAR(J36+42),MONTH(J36+42),1)","v":"2021-03-01"},null,null,null,null,null,null,null,null,"Dacă doriți să vă reamintiți ce răspunsuri ați dat într-o anumită zi, dați click pe data respectivă în calendarul alăturat și apoi apăsați AICI"]
[null,{"$f":"CHOOSE(1+MOD($O$3+1-2,7),\"D\",\"L\",\"M\",\"M\",\"J\",\"V\",\"S\")","v":"L"},{"$f":"CHOOSE(1+MOD($O$3+2-2,7),\"D\",\"L\",\"M\",\"M\",\"J\",\"V\",\"S\")","v":"M"},{"$f":"CHOOSE(1+MOD($O$3+3-2,7),\"D\",\"L\",\"M\",\"M\",\"J\",\"V\",\"S\")","v":"M"},{"$f":"CHOOSE(1+MOD($O$3+4-2,7),\"D\",\"L\",\"M\",\"M\",\"J\",\"V\",\"S\")","v":"J"},{"$f":"CHOOSE(1+MOD($O$3+5-2,7),\"D\",\"L\",\"M\",\"M\",\"J\",\"V\",\"S\")","v":"V"},{"$f":"CHOOSE(1+MOD($O$3+6-2,7),\"D\",\"L\",\"M\",\"M\",\"J\",\"V\",\"S\")","v":"S"},{"$f":"CHOOSE(1+MOD($O$3+7-2,7),\"D\",\"L\",\"M\",\"M\",\"J\",\"V\",\"S\")","v":"D"},null,{"$f":"CHOOSE(1+MOD($O$3+1-2,7),\"D\",\"L\",\"M\",\"M\",\"J\",\"V\",\"S\")","v":"L"},{"$f":"CHOOSE(1+MOD($O$3+2-2,7),\"D\",\"L\",\"M\",\"M\",\"J\",\"V\",\"S\")","v":"M"},{"$f":"CHOOSE(1+MOD($O$3+3-2,7),\"D\",\"L\",\"M\",\"M\",\"J\",\"V\",\"S\")","v":"M"},{"$f":"CHOOSE(1+MOD($O$3+4-2,7),\"D\",\"L\",\"M\",\"M\",\"J\",\"V\",\"S\")","v":"J"},{"$f":"CHOOSE(1+MOD($O$3+5-2,7),\"D\",\"L\",\"M\",\"M\",\"J\",\"V\",\"S\")","v":"V"},{"$f":"CHOOSE(1+MOD($O$3+6-2,7),\"D\",\"L\",\"M\",\"M\",\"J\",\"V\",\"S\")","v":"S"},{"$f":"CHOOSE(1+MOD($O$3+7-2,7),\"D\",\"L\",\"M\",\"M\",\"J\",\"V\",\"S\")","v":"D"},null,{"$f":"CHOOSE(1+MOD($O$3+1-2,7),\"D\",\"L\",\"M\",\"M\",\"J\",\"V\",\"S\")","v":"L"},{"$f":"CHOOSE(1+MOD($O$3+2-2,7),\"D\",\"L\",\"M\",\"M\",\"J\",\"V\",\"S\")","v":"M"},{"$f":"CHOOSE(1+MOD($O$3+3-2,7),\"D\",\"L\",\"M\",\"M\",\"J\",\"V\",\"S\")","v":"M"},{"$f":"CHOOSE(1+MOD($O$3+4-2,7),\"D\",\"L\",\"M\",\"M\",\"J\",\"V\",\"S\")","v":"J"},{"$f":"CHOOSE(1+MOD($O$3+5-2,7),\"D\",\"L\",\"M\",\"M\",\"J\",\"V\",\"S\")","v":"V"},{"$f":"CHOOSE(1+MOD($O$3+6-2,7),\"D\",\"L\",\"M\",\"M\",\"J\",\"V\",\"S\")","v":"S"},{"$f":"CHOOSE(1+MOD($O$3+7-2,7),\"D\",\"L\",\"M\",\"M\",\"J\",\"V\",\"S\")","v":"D"}]
[null,{"$f":"IF(WEEKDAY(B36,1)=MOD($O$3,7),B36,\"\")","v":""},{"$f":"IF(B38=\"\",IF(WEEKDAY(B36,1)=MOD($O$3,7)+1,B36,\"\"),B38+1)","v":""},{"$f":"IF(C38=\"\",IF(WEEKDAY(B36,1)=MOD($O$3+1,7)+1,B36,\"\"),C38+1)","v":""},{"$f":"IF(D38=\"\",IF(WEEKDAY(B36,1)=MOD($O$3+2,7)+1,B36,\"\"),D38+1)","v":""},{"$f":"IF(E38=\"\",IF(WEEKDAY(B36,1)=MOD($O$3+3,7)+1,B36,\"\"),E38+1)","v":"2021-01-01"},{"$f":"IF(F38=\"\",IF(WEEKDAY(B36,1)=MOD($O$3+4,7)+1,B36,\"\"),F38+1)","v":"2021-01-02"},{"$f":"IF(G38=\"\",IF(WEEKDAY(B36,1)=MOD($O$3+5,7)+1,B36,\"\"),G38+1)","v":"2021-01-03"},null,{"$f":"IF(WEEKDAY(J36,1)=MOD($O$3,7),J36,\"\")","v":"2021-02-01"},{"$f":"IF(J38=\"\",IF(WEEKDAY(J36,1)=MOD($O$3,7)+1,J36,\"\"),J38+1)","v":"2021-02-02"},{"$f":"IF(K38=\"\",IF(WEEKDAY(J36,1)=MOD($O$3+1,7)+1,J36,\"\"),K38+1)","v":"2021-02-03"},{"$f":"IF(L38=\"\",IF(WEEKDAY(J36,1)=MOD($O$3+2,7)+1,J36,\"\"),L38+1)","v":"2021-02-04"},{"$f":"IF(M38=\"\",IF(WEEKDAY(J36,1)=MOD($O$3+3,7)+1,J36,\"\"),M38+1)","v":"2021-02-05"},{"$f":"IF(N38=\"\",IF(WEEKDAY(J36,1)=MOD($O$3+4,7)+1,J36,\"\"),N38+1)","v":"2021-02-06"},{"$f":"IF(O38=\"\",IF(WEEKDAY(J36,1)=MOD($O$3+5,7)+1,J36,\"\"),O38+1)","v":"2021-02-07"},null,{"$f":"IF(WEEKDAY(R36,1)=MOD($O$3,7),R36,\"\")","v":"2021-03-01"},{"$f":"IF(R38=\"\",IF(WEEKDAY(R36,1)=MOD($O$3,7)+1,R36,\"\"),R38+1)","v":"2021-03-02"},{"$f":"IF(S38=\"\",IF(WEEKDAY(R36,1)=MOD($O$3+1,7)+1,R36,\"\"),S38+1)","v":"2021-03-03"},{"$f":"IF(T38=\"\",IF(WEEKDAY(R36,1)=MOD($O$3+2,7)+1,R36,\"\"),T38+1)","v":"2021-03-04"},{"$f":"IF(U38=\"\",IF(WEEKDAY(R36,1)=MOD($O$3+3,7)+1,R36,\"\"),U38+1)","v":"2021-03-05"},{"$f":"IF(V38=\"\",IF(WEEKDAY(R36,1)=MOD($O$3+4,7)+1,R36,\"\"),V38+1)","v":"2021-03-06"},{"$f":"IF(W38=\"\",IF(WEEKDAY(R36,1)=MOD($O$3+5,7)+1,R36,\"\"),W38+1)","v":"2021-03-07"}]
[null,{"$f":"IF(H38=\"\",\"\",IF(MONTH(H38+1)<>MONTH(H38),\"\",H38+1))","v":"2021-01-04"},{"$f":"IF(B39=\"\",\"\",IF(MONTH(B39+1)<>MONTH(B39),\"\",B39+1))","v":"2021-01-05"},"2021-01-06","2021-01-07","2021-01-08","2021-01-09","2021-01-10",null,{"$f":"IF(P38=\"\",\"\",IF(MONTH(P38+1)<>MONTH(P38),\"\",P38+1))","v":"2021-02-08"},{"$f":"IF(J39=\"\",\"\",IF(MONTH(J39+1)<>MONTH(J39),\"\",J39+1))","v":"2021-02-09"},"2021-02-10","2021-02-11","2021-02-12","2021-02-13","2021-02-14",null,{"$f":"IF(X38=\"\",\"\",IF(MONTH(X38+1)<>MONTH(X38),\"\",X38+1))","v":"2021-03-08"},{"$f":"IF(R39=\"\",\"\",IF(MONTH(R39+1)<>MONTH(R39),\"\",R39+1))","v":"2021-03-09"},"2021-03-10","2021-03-11","2021-03-12","2021-03-13","2021-03-14",null,null,"Vizualizare istoric pentru data de",null,null,null,null,null,"2020-04-02"]
[null,{"$f":"IF(H39=\"\",\"\",IF(MONTH(H39+1)<>MONTH(H39),\"\",H39+1))","v":"2021-01-11"},"2021-01-12","2021-01-13","2021-01-14","2021-01-15","2021-01-16","2021-01-17",null,{"$f":"IF(P39=\"\",\"\",IF(MONTH(P39+1)<>MONTH(P39),\"\",P39+1))","v":"2021-02-15"},"2021-02-16","2021-02-17","2021-02-18","2021-02-19","2021-02-20","2021-02-21",null,{"$f":"IF(X39=\"\",\"\",IF(MONTH(X39+1)<>MONTH(X39),\"\",X39+1))","v":"2021-03-15"},"2021-03-16","2021-03-17","2021-03-18","2021-03-19","2021-03-20","2021-03-21",null,null,{"$f":"IF(AM1=0,\"Mai întai selectați o dată din calendarul alăturat.\nAveți grijă ca data aleasă să fie între data începerii și data de astăzi!\",INDEX(istoric,AM1,AM2))","v":"Mai întai selectați o dată din calendarul alăturat.\nAveți grijă ca data aleasă să fie între data începerii și data de astăzi!"}]
[null,{"$f":"IF(H40=\"\",\"\",IF(MONTH(H40+1)<>MONTH(H40),\"\",H40+1))","v":"2021-01-18"},"2021-01-19","2021-01-20","2021-01-21","2021-01-22","2021-01-23","2021-01-24",null,{"$f":"IF(P40=\"\",\"\",IF(MONTH(P40+1)<>MONTH(P40),\"\",P40+1))","v":"2021-02-22"},"2021-02-23","2021-02-24","2021-02-25","2021-02-26","2021-02-27","2021-02-28",null,{"$f":"IF(X40=\"\",\"\",IF(MONTH(X40+1)<>MONTH(X40),\"\",X40+1))","v":"2021-03-22"},"2021-03-23","2021-03-24","2021-03-25","2021-03-26","2021-03-27","2021-03-28"]
[null,{"$f":"IF(H41=\"\",\"\",IF(MONTH(H41+1)<>MONTH(H41),\"\",H41+1))","v":"2021-01-25"},"2021-01-26","2021-01-27","2021-01-28","2021-01-29","2021-01-30","2021-01-31",null,{"$f":"IF(P41=\"\",\"\",IF(MONTH(P41+1)<>MONTH(P41),\"\",P41+1))","v":""},"","","","","","",null,{"$f":"IF(X41=\"\",\"\",IF(MONTH(X41+1)<>MONTH(X41),\"\",X41+1))","v":"2021-03-29"},"2021-03-30","2021-03-31","","","",""]
[null,{"$f":"IF(H42=\"\",\"\",IF(MONTH(H42+1)<>MONTH(H42),\"\",H42+1))","v":""},"","","","","","",null,{"$f":"IF(P42=\"\",\"\",IF(MONTH(P42+1)<>MONTH(P42),\"\",P42+1))","v":""},"","","","","","",null,{"$f":"IF(X42=\"\",\"\",IF(MONTH(X42+1)<>MONTH(X42),\"\",X42+1))","v":""},"","","","","",""]
[]
[]
[]
[]
[]
[]
[]
[]
[]
[]
[]
[]
[]
[]
[]
[]
[]
[]
[]
[]
[]
[]
[]
[]
[]
[]
[null,null,null,null,null,null,null,null,null,null,null,null,null,null,null,null,null,null,null,null,null,null,null,null,null,null,null,null,null,null,null,null,null,null,null,null,null,null,null,null,null,null,null,null,null,null,null,null,null,null,null,null,"k"]
[null,null,null,null,null,null,null,null,null,null,null,null,null,null,null,null,null,null,null,null,null,null,null,null,null,null,null,null,null,null,null,null,null,null,null,null,null,null,null,null,null,null,null,null,null,null,null,null,null,null,null,null,"k"]

{"sheet":"Istoric","index":2,"n_rows":32,"n_cols":12,"rows_kept":32,"cut":false,"hidden":false,"merged":[]}
["Înca nu sunt date introduse pentru aceasta data","Înca nu sunt date introduse pentru aceasta data","Înca nu sunt date introduse pentru aceasta data","Înca nu sunt date introduse pentru aceasta data","Înca nu sunt date introduse pentru aceasta data","Înca nu sunt date introduse pentru aceasta data","Înca nu sunt date introduse pentru aceasta data","Înca nu sunt date introduse pentru aceasta data","Înca nu sunt date introduse pentru aceasta data","Înca nu sunt date introduse pentru aceasta data","Înca nu sunt date introduse pentru aceasta data","Înca nu sunt date introduse pentru aceasta data"]
["Înca nu sunt date introduse pentru aceasta data","Înca nu sunt date introduse pentru aceasta data","Înca nu sunt date introduse pentru aceasta data","Înca nu sunt date introduse pentru aceasta data","Înca nu sunt date introduse pentru aceasta data","Înca nu sunt date introduse pentru aceasta data","Înca nu sunt date introduse pentru aceasta data","Înca nu sunt date introduse pentru aceasta data","Înca nu sunt date introduse pentru aceasta data","Înca nu sunt date introduse pentru aceasta data","Înca nu sunt date introduse pentru aceasta data","Înca nu sunt date introduse pentru aceasta data"]
["Înca nu sunt date introduse pentru aceasta data","Înca nu sunt date introduse pentru aceasta data","Înca nu sunt date introduse pentru aceasta data","Înca nu sunt date introduse pentru aceasta data","Înca nu sunt date introduse pentru aceasta data","Înca nu sunt date introduse pentru aceasta data","Înca nu sunt date introduse pentru aceasta data","Înca nu sunt date introduse pentru aceasta data","Înca nu sunt date introduse pentru aceasta data","Înca nu sunt date introduse pentru aceasta data","Înca nu sunt date introduse pentru aceasta data","Înca nu sunt date introduse pentru aceasta data"]
["Înca nu sunt date introduse pentru aceasta data","Înca nu sunt date introduse pentru aceasta data","Înca nu sunt date introduse pentru aceasta data","Înca nu sunt date introduse pentru aceasta data","Înca nu sunt date introduse pentru aceasta data","Înca nu sunt date introduse pentru aceasta data","Înca nu sunt date introduse pentru aceasta data","Înca nu sunt date introduse pentru aceasta data","Înca nu sunt date introduse pentru aceasta data","Înca nu sunt date introduse pentru aceasta data","Înca nu sunt date introduse pentru aceasta data","Înca nu sunt date introduse pentru aceasta data"]
["Înca nu sunt date introduse pentru aceasta data","Înca nu sunt date introduse pentru aceasta data","Înca nu sunt date introduse pentru aceasta data","Înca nu sunt date introduse pentru aceasta data","Înca nu sunt date introduse pentru aceasta data","Înca nu sunt date introduse pentru aceasta data","Înca nu sunt date introduse pentru aceasta data","Înca nu sunt date introduse pentru aceasta data","Înca nu sunt date introduse pentru aceasta data","Înca nu sunt date introduse pentru aceasta data","Înca nu sunt date introduse pentru aceasta data","Înca nu sunt date introduse pentru aceasta data"]
["Înca nu sunt date introduse pentru aceasta data","Înca nu sunt date introduse pentru aceasta data","Înca nu sunt date introduse pentru aceasta data","Înca nu sunt date introduse pentru aceasta data","Înca nu sunt date introduse pentru aceasta data","Înca nu sunt date introduse pentru aceasta data","Înca nu sunt date introduse pentru aceasta data","Înca nu sunt date introduse pentru aceasta data","Înca nu sunt date introduse pentru aceasta data","Înca nu sunt date introduse pentru aceasta data","Înca nu sunt date introduse pentru aceasta data","Înca nu sunt date introduse pentru aceasta data"]
["Înca nu sunt date introduse pentru aceasta data","Înca nu sunt date introduse pentru aceasta data","Înca nu sunt date introduse pentru aceasta data","Înca nu sunt date introduse pentru aceasta data","Înca nu sunt date introduse pentru aceasta data","Înca nu sunt date introduse pentru aceasta data","Înca nu sunt date introduse pentru aceasta data","Înca nu sunt date introduse pentru aceasta data","Înca nu sunt date introduse pentru aceasta data","Înca nu sunt date introduse pentru aceasta data","Înca nu sunt date introduse pentru aceasta data","Înca nu sunt date introduse pentru aceasta data"]
["Înca nu sunt date introduse pentru aceasta data","Înca nu sunt date introduse pentru aceasta data","Înca nu sunt date introduse pentru aceasta data","Înca nu sunt date introduse pentru aceasta data","Înca nu sunt date introduse pentru aceasta data","Înca nu sunt date introduse pentru aceasta data","Înca nu sunt date introduse pentru aceasta data","Înca nu sunt date introduse pentru aceasta data","Înca nu sunt date introduse pentru aceasta data","Înca nu sunt date introduse pentru aceasta data","Înca nu sunt date introduse pentru aceasta data","Înca nu sunt date introduse pentru aceasta data"]
["Înca nu sunt date introduse pentru aceasta data","Înca nu sunt date introduse pentru aceasta data","Înca nu sunt date introduse pentru aceasta data","Înca nu sunt date introduse pentru aceasta data","Înca nu sunt date introduse pentru aceasta data","Înca nu sunt date introduse pentru aceasta data","Înca nu sunt date introduse pentru aceasta data","Înca nu sunt date introduse pentru aceasta data","Înca nu sunt date introduse pentru aceasta data","Înca nu sunt date introduse pentru aceasta data","Înca nu sunt date introduse pentru aceasta data","Înca nu sunt date introduse pentru aceasta data"]
["Înca nu sunt date introduse pentru aceasta data","Înca nu sunt date introduse pentru aceasta data","Înca nu sunt date introduse pentru aceasta data","Înca nu sunt date introduse pentru aceasta data","Înca nu sunt date introduse pentru aceasta data","Înca nu sunt date introduse pentru aceasta data","Înca nu sunt date introduse pentru aceasta data","Înca nu sunt date introduse pentru aceasta data","Înca nu sunt date introduse pentru aceasta data","Înca nu sunt date introduse pentru aceasta data","Înca nu sunt date introduse pentru aceasta data","Înca nu sunt date introduse pentru aceasta data"]
["Înca nu sunt date introduse pentru aceasta data","Înca nu sunt date introduse pentru aceasta data","Înca nu sunt date introduse pentru aceasta data","Înca nu sunt date introduse pentru aceasta data","Înca nu sunt date introduse pentru aceasta data","Înca nu sunt date introduse pentru aceasta data","Înca nu sunt date introduse pentru aceasta data","Înca nu sunt date introduse pentru aceasta data","Înca nu sunt date introduse pentru aceasta data","Înca nu sunt date introduse pentru aceasta data","Înca nu sunt date introduse pentru aceasta data","Înca nu sunt date introduse pentru aceasta data"]
["Înca nu sunt date introduse pentru aceasta data","Înca nu sunt date introduse pentru aceasta data","Înca nu sunt date introduse pentru aceasta data","Înca nu sunt date introduse pentru aceasta data","Înca nu sunt date introduse pentru aceasta data","Înca nu sunt date introduse pentru aceasta data","Înca nu sunt date introduse pentru aceasta data","Înca nu sunt date introduse pentru aceasta data","Înca nu sunt date introduse pentru aceasta data","Înca nu sunt date introduse pentru aceasta data","Înca nu sunt date introduse pentru aceasta data","Înca nu sunt date introduse pentru aceasta data"]
["Înca nu sunt date introduse pentru aceasta data","Înca nu sunt date introduse pentru aceasta data","Înca nu sunt date introduse pentru aceasta data","Înca nu sunt date introduse pentru aceasta data","Înca nu sunt date introduse pentru aceasta data","Înca nu sunt date introduse pentru aceasta data","Înca nu sunt date introduse pentru aceasta data","Înca nu sunt date introduse pentru aceasta data","Înca nu sunt date introduse pentru aceasta data","Înca nu sunt date introduse pentru aceasta data","Înca nu sunt date introduse pentru aceasta data","Înca nu sunt date introduse pentru aceasta data"]
["Înca nu sunt date introduse pentru aceasta data","Înca nu sunt date introduse pentru aceasta data","Înca nu sunt date introduse pentru aceasta data","Înca nu sunt date introduse pentru aceasta data","Înca nu sunt date introduse pentru aceasta data","Înca nu sunt date introduse pentru aceasta data","Înca nu sunt date introduse pentru aceasta data","Înca nu sunt date introduse pentru aceasta data","Înca nu sunt date introduse pentru aceasta data","Înca nu sunt date introduse pentru aceasta data","Înca nu sunt date introduse pentru aceasta data","Înca nu sunt date introduse pentru aceasta data"]
["Înca nu sunt date introduse pentru aceasta data","Înca nu sunt date introduse pentru aceasta data","Înca nu sunt date introduse pentru aceasta data","Înca nu sunt date introduse pentru aceasta data","Înca nu sunt date introduse pentru aceasta data","Înca nu sunt date introduse pentru aceasta data","Înca nu sunt date introduse pentru aceasta data","Înca nu sunt date introduse pentru aceasta data","Înca nu sunt date introduse pentru aceasta data","Înca nu sunt date introduse pentru aceasta data","Înca nu sunt date introduse pentru aceasta data","Înca nu sunt date introduse pentru aceasta data"]
["Înca nu sunt date introduse pentru aceasta data","Înca nu sunt date introduse pentru aceasta data","Înca nu sunt date introduse pentru aceasta data","Înca nu sunt date introduse pentru aceasta data","Înca nu sunt date introduse pentru aceasta data","Înca nu sunt date introduse pentru aceasta data","Înca nu sunt date introduse pentru aceasta data","Înca nu sunt date introduse pentru aceasta data","Înca nu sunt date introduse pentru aceasta data","Înca nu sunt date introduse pentru aceasta data","Înca nu sunt date introduse pentru aceasta data","Înca nu sunt date introduse pentru aceasta data"]
["Înca nu sunt date introduse pentru aceasta data","Înca nu sunt date introduse pentru aceasta data","Înca nu sunt date introduse pentru aceasta data","Înca nu sunt date introduse pentru aceasta data","Înca nu sunt date introduse pentru aceasta data","Înca nu sunt date introduse pentru aceasta data","Înca nu sunt date introduse pentru aceasta data","Înca nu sunt date introduse pentru aceasta data","Înca nu sunt date introduse pentru aceasta data","Înca nu sunt date introduse pentru aceasta data","Înca nu sunt date introduse pentru aceasta data","Înca nu sunt date introduse pentru aceasta data"]
["Înca nu sunt date introduse pentru aceasta data","Înca nu sunt date introduse pentru aceasta data","Înca nu sunt date introduse pentru aceasta data","Înca nu sunt date introduse pentru aceasta data","Înca nu sunt date introduse pentru aceasta data","Înca nu sunt date introduse pentru aceasta data","Înca nu sunt date introduse pentru aceasta data","Înca nu sunt date introduse pentru aceasta data","Înca nu sunt date introduse pentru aceasta data","Înca nu sunt date introduse pentru aceasta data","Înca nu sunt date introduse pentru aceasta data","Înca nu sunt date introduse pentru aceasta data"]
["Înca nu sunt date introduse pentru aceasta data","Înca nu sunt date introduse pentru aceasta data","Înca nu sunt date introduse pentru aceasta data","Înca nu sunt date introduse pentru aceasta data","Înca nu sunt date introduse pentru aceasta data","Înca nu sunt date introduse pentru aceasta data","Înca nu sunt date introduse pentru aceasta data","Înca nu sunt date introduse pentru aceasta data","Înca nu sunt date introduse pentru aceasta data","Înca nu sunt date introduse pentru aceasta data","Înca nu sunt date introduse pentru aceasta data","Înca nu sunt date introduse pentru aceasta data"]
["Înca nu sunt date introduse pentru aceasta data","Înca nu sunt date introduse pentru aceasta data","Înca nu sunt date introduse pentru aceasta data","Înca nu sunt date introduse pentru aceasta data","Înca nu sunt date introduse pentru aceasta data","Înca nu sunt date introduse pentru aceasta data","Înca nu sunt date introduse pentru aceasta data","Înca nu sunt date introduse pentru aceasta data","Înca nu sunt date introduse pentru aceasta data","Înca nu sunt date introduse pentru aceasta data","Înca nu sunt date introduse pentru aceasta data","Înca nu sunt date introduse pentru aceasta data"]
["Înca nu sunt date introduse pentru aceasta data","Înca nu sunt date introduse pentru aceasta data","Înca nu sunt date introduse pentru aceasta data","Înca nu sunt date introduse pentru aceasta data","Înca nu sunt date introduse pentru aceasta data","Înca nu sunt date introduse pentru aceasta data","Înca nu sunt date introduse pentru aceasta data","Înca nu sunt date introduse pentru aceasta data","Înca nu sunt date introduse pentru aceasta data","Înca nu sunt date introduse pentru aceasta data","Înca nu sunt date introduse pentru aceasta data","Înca nu sunt date introduse pentru aceasta data"]
["Înca nu sunt date introduse pentru aceasta data","Înca nu sunt date introduse pentru aceasta data","Înca nu sunt date introduse pentru aceasta data","Înca nu sunt date introduse pentru aceasta data","Înca nu sunt date introduse pentru aceasta data","Înca nu sunt date introduse pentru aceasta data","Înca nu sunt date introduse pentru aceasta data","Înca nu sunt date introduse pentru aceasta data","Înca nu sunt date introduse pentru aceasta data","Înca nu sunt date introduse pentru aceasta data","Înca nu sunt date introduse pentru aceasta data","Înca nu sunt date introduse pentru aceasta data"]
["Înca nu sunt date introduse pentru aceasta data","Înca nu sunt date introduse pentru aceasta data","Înca nu sunt date introduse pentru aceasta data","Înca nu sunt date introduse pentru aceasta data","Înca nu sunt date introduse pentru aceasta data","Înca nu sunt date introduse pentru aceasta data","Înca nu sunt date introduse pentru aceasta data","Înca nu sunt date introduse pentru aceasta data","Înca nu sunt date introduse pentru aceasta data","Înca nu sunt date introduse pentru aceasta data","Înca nu sunt date introduse pentru aceasta data","Înca nu sunt date introduse pentru aceasta data"]
["Înca nu sunt date introduse pentru aceasta data","Înca nu sunt date introduse pentru aceasta data","Înca nu sunt date introduse pentru aceasta data","Înca nu sunt date introduse pentru aceasta data","Înca nu sunt date introduse pentru aceasta data","Înca nu sunt date introduse pentru aceasta data","Înca nu sunt date introduse pentru aceasta data","Înca nu sunt date introduse pentru aceasta data","Înca nu sunt date introduse pentru aceasta data","Înca nu sunt date introduse pentru aceasta data","Înca nu sunt date introduse pentru aceasta data","Înca nu sunt date introduse pentru aceasta data"]
["Înca nu sunt date introduse pentru aceasta data","Înca nu sunt date introduse pentru aceasta data","Înca nu sunt date introduse pentru aceasta data","Înca nu sunt date introduse pentru aceasta data","Înca nu sunt date introduse pentru aceasta data","Înca nu sunt date introduse pentru aceasta data","Înca nu sunt date introduse pentru aceasta data","Înca nu sunt date introduse pentru aceasta data","Înca nu sunt date introduse pentru aceasta data","Înca nu sunt date introduse pentru aceasta data","Înca nu sunt date introduse pentru aceasta data","Înca nu sunt date introduse pentru aceasta data"]
["Înca nu sunt date introduse pentru aceasta data","Înca nu sunt date introduse pentru aceasta data","Înca nu sunt date introduse pentru aceasta data","Înca nu sunt date introduse pentru aceasta data","Înca nu sunt date introduse pentru aceasta data","Înca nu sunt date introduse pentru aceasta data","Înca nu sunt date introduse pentru aceasta data","Înca nu sunt date introduse pentru aceasta data","Înca nu sunt date introduse pentru aceasta data","Înca nu sunt date introduse pentru aceasta data","Înca nu sunt date introduse pentru aceasta data","Înca nu sunt date introduse pentru aceasta data"]
["Înca nu sunt date introduse pentru aceasta data","Înca nu sunt date introduse pentru aceasta data","Înca nu sunt date introduse pentru aceasta data","Înca nu sunt date introduse pentru aceasta data","Înca nu sunt date introduse pentru aceasta data","Înca nu sunt date introduse pentru aceasta data","Înca nu sunt date introduse pentru aceasta data","Înca nu sunt date introduse pentru aceasta data","Înca nu sunt date introduse pentru aceasta data","Înca nu sunt date introduse pentru aceasta data","Înca nu sunt date introduse pentru aceasta data","Înca nu sunt date introduse pentru aceasta data"]
["Înca nu sunt date introduse pentru aceasta data","Înca nu sunt date introduse pentru aceasta data","Înca nu sunt date introduse pentru aceasta data","Înca nu sunt date introduse pentru aceasta data","Înca nu sunt date introduse pentru aceasta data","Înca nu sunt date introduse pentru aceasta data","Înca nu sunt date introduse pentru aceasta data","Înca nu sunt date introduse pentru aceasta data","Înca nu sunt date introduse pentru aceasta data","Înca nu sunt date introduse pentru aceasta data","Înca nu sunt date introduse pentru aceasta data","Înca nu sunt date introduse pentru aceasta data"]
["Înca nu sunt date introduse pentru aceasta data","Înca nu sunt date introduse pentru aceasta data","Înca nu sunt date introduse pentru aceasta data","Înca nu sunt date introduse pentru aceasta data","Înca nu sunt date introduse pentru aceasta data","Înca nu sunt date introduse pentru aceasta data","Înca nu sunt date introduse pentru aceasta data","Înca nu sunt date introduse pentru aceasta data","Înca nu sunt date introduse pentru aceasta data","Înca nu sunt date introduse pentru aceasta data","Înca nu sunt date introduse pentru aceasta data","Înca nu sunt date introduse pentru aceasta data"]
["Înca nu sunt date introduse pentru aceasta data","Înca nu sunt date introduse pentru aceasta data","Înca nu sunt date introduse pentru aceasta data","Înca nu sunt date introduse pentru aceasta data","Înca nu sunt date introduse pentru aceasta data","Înca nu sunt date introduse pentru aceasta data","Înca nu sunt date introduse pentru aceasta data","Înca nu sunt date introduse pentru aceasta data","Înca nu sunt date introduse pentru aceasta data","Înca nu sunt date introduse pentru aceasta data","Înca nu sunt date introduse pentru aceasta data","Înca nu sunt date introduse pentru aceasta data"]
["Înca nu sunt date introduse pentru aceasta data","Înca nu sunt date introduse pentru aceasta data","Înca nu sunt date introduse pentru aceasta data","Înca nu sunt date introduse pentru aceasta data","Înca nu sunt date introduse pentru aceasta data","Înca nu sunt date introduse pentru aceasta data","Înca nu sunt date introduse pentru aceasta data","Înca nu sunt date introduse pentru aceasta data","Înca nu sunt date introduse pentru aceasta data","Înca nu sunt date introduse pentru aceasta data","Înca nu sunt date introduse pentru aceasta data","Înca nu sunt date introduse pentru aceasta data"]
["January","February","March","April","May","June","July","August","September","October","November","December"]